{"text_format":"1","workbook":"xlsx","n_sheets":4,"sheets":["Nabídka","1. strana","2. strana","Výpočet"],"not_rendered":{"charts":0,"images":5,"macros":1,"external_links":0,"defined_names":0,"comments":0,"pivot_tables":0},"unopened":[],"bounds":{"document_bytes":16777216,"sheet_cells":100000,"rows_first":2000,"rows_last":500,"rows_between":2000,"halvings":0,"cell_chars":16384,"cell_head_chars":4096},"cells_cut":0,"cells_raw":0,"read":"whole","date_system":"1900"}

{"sheet":"Nabídka","index":0,"n_rows":17,"n_cols":13,"rows_kept":17,"cut":false,"hidden":false,"merged":[[14,12,14,15],[16,12,16,15],[12,12,12,15],[9,10,10,16]]}
[]
[]
[]
[]
[]
[]
[]
[]
[]
[null,null,null,null,null,null,null,null,null,null,"VYTVOŘENÍ NABÍDKY PRO ZAMĚSTNAVATELE"]
[]
[]
[null,null,null,null,null,null,null,null,null,null,null,"Název společnosti","Komerční banka, a.s."]
[]
[null,null,null,null,null,null,null,null,null,null,null,"Příspěvek zaměstnavatele",4200]
[]
[null,null,null,null,null,null,null,null,null,null,null,"Počet zaměstnanců",1]

{"sheet":"1. strana","index":1,"n_rows":55,"n_cols":9,"rows_kept":55,"cut":false,"hidden":false,"merged":[[37,4,37,5],[39,4,39,5],[7,2,8,10],[6,2,6,10],[28,4,28,5],[28,7,28,8],[35,2,35,8]]}
[]
[]
[]
[]
[]
[null,null,"DOPLŇKOVÉ PENZIJNÍ SPOŘENÍ "]
[null,null,"BENEFIT PRO VAŠE ZAMĚSTNANCE"]
[null,null,{"$f":"Nabídka!M13","v":"Komerční banka, a.s."}]
[]
[]
[null,null,"Příspěvek zaměstnavatele na penzijní spoření je oblíbený zaměstnanecký benefit, díky kterému"]
[null,null,"můžete získat daňové úlevy a ušetřit mzdové náklady."]
[]
[null,null,"Hlavní výhody pro zaměstnavatele"]
[null,null,"▪  příspěvek na penzijko je 100 % nákladová položka "]
[null,null,"▪  do výše 50 000 Kč ročně na 1 zaměstnance nepodléhá odvodům sociálního a zdravotního "]
[null,null,"    pojištění, což znamená úsporu mzdových nákladů 33,8 %"]
[null,null,"▪  výši příspěvku můžete zvyšovat, snižovat nebo pozastavit "]
[null,null,"▪  jednoduchá správa a přehled plateb"]
[]
[]
[]
[]
[]
[]
[]
[null,null,"Modelový příklad měsíční úspory při využití penzijka"]
[]
[null,null,"Příspěvek",null,"Úspora zaměstnavatele",null,null,"Navýšení příjmu zaměstnance"]
[]
[null,null,{"$f":"CONCATENATE(Nabídka!M15,\" Kč\")","v":"4200 Kč"},null,"povinné odvody*","mzdové náklady",null,"povinné odvody**","navýšení příjmu"]
[]
[null,null,"do mzdy",null,{"$f":"Výpočet!I8","v":1419.6000000000001},{"$f":"Výpočet!I11","v":5619.6},null,{"$f":"Výpočet!D13","v":1117.1999999999998},{"$f":"Výpočet!C11","v":3082.8}]
[null,null,"na penzijko",null,0,{"$f":"Nabídka!M15","v":4200},null,0,{"$f":"C31","v":"4200 Kč"}]
[]
[null,null,"Celková úspora"]
[]
[null,null,"na 1 zaměstnance",null,{"$f":"Výpočet!J13","v":1419.6000000000004}]
[]
[null,null,{"$f":"CONCATENATE(\"na \", Nabídka!M17,\" zaměstnanců\")","v":"na 1 zaměstnanců"},null,{"$f":"E38*Nabídka!M17","v":1419.6000000000004}]
[]
[null,null,"  * Odvody z pohledu zaměstnavatele = sociální a zdravotní pojištění"]
[null,null,"** Odvody z pohledu zaměstnance = daň z příjmu, sociální, zdravotní a nemocenské pojištění"]
[]
[]
[null,null,"Jak začít přispívat zaměstnancům na penzijko"]
[]
[null,null,"▪ pro daňovou uznatelnost musí být příspěvek zaměstnavatele upraven vnitřním předpisem, "]
[null,null,"   kolektivní, pracovní či jinou smlouvou"]
[null,null,"▪ ve smlouvě o penzijku musí zaměstnanec sjednat “Souhlas s příspěvkem zaměstnavatele” "]
[null,null,"   a předat kopii smlouvy zaměstnavateli"]
[]
[null,null,"KB Penzijní společnost, a.s., se sídlem:",null,null,null,null,null,"955 525 999 | www.kbps.cz"]
[null,null,"nám. Junkových 2772/1, 155 00 Praha 5, IČO: 61860018",null,null,null,null,null,"www.facebook.com/mojepenzijko"]
[null,null,"ZAPSANÁ V OBCHODNÍM REJSTŘÍKU VEDENÉM MĚSTSKKÝM SOUDEM V PRAZE, ODDÍL B, VLOŽKA 2865",null,null,null,null,null,"www.linkedin.com/company/mojepenzijko"]

{"sheet":"2. strana","index":2,"n_rows":53,"n_cols":9,"rows_kept":53,"cut":false,"hidden":false,"merged":[]}
[]
[]
[null,"Další výhody pro zaměstnance"]
[null,"▪  státní příspěvek až 4 080 Kč za rok"]
[null,"▪  daňové zvýhodnění až 48 000 Kč ročně"]
[null,"▪  dostupnost prostředků již po 24 odspořených měsících"]
[null,"▪  změna výše příspěvku i investiční strategie kdykoliv v průběhu trvání smlouvy"]
[null,"▪  přehled a správa penzijka přes aplikaci KB+"]
[]
[null,"Podpora od státu dle příspěvku zaměstnance"]
[]
[null,"Příspěvek účastníka",null,"Státní příspěvek",null,"Roční úspora na dani",null,"Roční podpora celkem"]
[null,"do 499 Kč",null,0,null,0,null,0]
[null,500,null,100,null,0,null,1200]
[null,1000,null,200,null,0,null,2400]
[null,1500,null,300,null,0,null,3600]
[null,1700,null,340,null,0,null,4080]
[null,3000,null,340,null,2340,null,6420]
[null,5700,null,340,null,7200,null,11280]
[]
[]
[]
[]
[]
[null,"Výhody penzijka u KB Penzijní společnosti"]
[]
[null,"▪  aktuální odměny k penzijku najdete na www.kb.cz/cs/kbps/odmeny"]
[null,"▪  1 % z každé platby kreditní kartou KB (A karta, Lady karta) až do výše 500 Kč/měs."]
[null,"▪  Relax program - zvýhodněné pobyty a služby ve vybraných rekreačních zařízeních"]
[]
[null,"Zaměstnavatel nesmí ovlivňovat zaměstnance při výběru konkrétní penzijní společnosti."]
[]
[null,"Kontakty"]
[null,"Aleš Veselý, tel.: 720 061 489, e-mail: ales.vesely@kb.cz"]
[null,"Martina Kozáčková, tel.: 724 044 630, e-mail: martina.kozackova@kb.cz"]
[null,"Jana Burešová, tel.: 724 356 406, e-mail: jana.buresova2@kb.cz"]
[null,"Milan Doubrava, tel.: 606 647 572, e-mail: milan.doubrava@kb.cz"]
[]
[]
[]
[]
[]
[]
[]
[]
[]
[]
[null,"Tento materiál má pouze informativní charakter a nejedná se o nabídku. "]
[null,"Více na www.kbps.cz."]
[]
[null,"KB Penzijní společnost, a.s., se sídlem:",null,null,null,null,null,null,"955 525 999 | www.kbps.cz"]
[null,"nám. Junkových 2772/1, 155 00 Praha 5, IČO: 61860018",null,null,null,null,null,null,"www.facebook.com/mojepenzijko"]
[null,"ZAPSANÁ V OBCHODNÍM REJSTŘÍKU VEDENÉM MĚSTSKKÝM SOUDEM V PRAZE, ODDÍL B, VLOŽKA 2865",null,null,null,null,null,null,"www.linkedin.com/company/mojepenzijko"]

{"sheet":"Výpočet","index":3,"n_rows":53,"n_cols":12,"rows_kept":53,"cut":false,"hidden":true,"merged":[[1,1,1,5],[1,7,1,11],[6,7,6,8],[6,10,6,11],[7,8,8,8],[7,10,8,10],[7,11,8,11],[51,7,52,7],[12,1,12,2],[7,7,8,7],[12,7,12,8],[6,1,6,2],[6,4,6,5],[47,7,48,7],[47,1,48,2],[16,1,16,11]]}
[]
[null,"Z pohledu zaměstnance",null,null,null,null,null,"Z pohledu zaměstnavatele"]
[]
[null,null,null,{"$f":"Nabídka!M15","v":4200},null,null,null,null,null,{"$f":"D4","v":4200}]
[]
[]
[null,"ve mzdě",null,null,"v penzijním spoření",null,null,"ve mzdě",null,null,{"$f":"E7","v":"v penzijním spoření"}]
[null,"soc. a zdrav./nemoc. pojištění",{"$f":"0.116*D4","v":487.20000000000005},null,{"$f":"B8","v":"soc. a zdrav./nemoc. pojištění"},0,null,{"$f":"B8","v":"soc. a zdrav./nemoc. pojištění"},{"$f":"0.338*D4","v":1419.6000000000001},null,"soc zdrav",0]
[null,"daň z příjmu",{"$f":"ROUNDUP(D4*0.15,0)","v":630},null,{"$f":"B9","v":"daň z příjmu"},0]
[]
[null,"čistý příjem",{"$f":"D4-C8-C9","v":3082.8},null,{"$f":"B11","v":"čistý příjem"},{"$f":"D4","v":4200},null,"mzdový náklad",{"$f":"SUM(I8:I10)+J4","v":5619.6},null,{"$f":"H11","v":"mzdový náklad"},{"$f":"J4","v":4200}]
[]
[null,"Zaměstnanec ušetří",null,{"$f":"F11-C11","v":1117.1999999999998},null,null,null,"Zaměstnavatel ušetří",null,{"$f":"I11-L11","v":1419.6000000000004}]
[]
[]
[]
[null,"Vyplň červenou buňku D4 a bež na list CZ nebo ENG (graficky upraveno)"]
[]
[null,"verze 117"]
[]
[]
[]
[]
[]
[]
[]
[]
[]
[]
[]
[]
[]
[]
[]
[]
[]
[]
[]
[]
[]
[]
[]
[]
[]
[]
[]
[null,null,null,{"$f":"B2","v":"Z pohledu zaměstnance"},{"$f":"B8","v":"soc. a zdrav./nemoc. pojištění"},{"$f":"B9","v":"daň z příjmu"},{"$f":"B11","v":"čistý příjem"},{"$f":"B13","v":"Zaměstnanec ušetří"}]
[null,{"$f":"D4","v":4200},null,{"$f":"B7","v":"ve mzdě"},{"$f":"C8","v":487.20000000000005},{"$f":"C9","v":630},{"$f":"C11","v":3082.8},{"$f":"D13","v":1117.1999999999998}]
[null,null,null,{"$f":"E7","v":"v penzijním spoření"},{"$f":"F8","v":0},{"$f":"F9","v":0},{"$f":"F11","v":4200}]
[]
[null,null,null,{"$f":"H2","v":"Z pohledu zaměstnavatele"},{"$f":"B8","v":"soc. a zdrav./nemoc. pojištění"},null,{"$f":"H11","v":"mzdový náklad"},{"$f":"H13","v":"Zaměstnavatel ušetří"}]
[null,null,null,{"$f":"H7","v":"ve mzdě"},{"$f":"C12","v":0},null,{"$f":"I11","v":5619.6},{"$f":"J13","v":1419.6000000000004}]
[null,null,null,{"$f":"K7","v":"v penzijním spoření"},{"$f":"F12","v":0},null,{"$f":"L11","v":4200}]